[Event "Championnat d'Europe Rapide"]
[Date "2024.12.07"]
[White "Santos Latasa, Jaime"]
[Black "Tweedie, Steven"]
[WhiteElo "2628"]
[BlackElo "2172"]
[Round "4.30"]
[Result "1-0"]
[TimeControl "900+10"]

1. Nf3 {[%emt 00:00:01] [%clk 00:15:18]} d5 {[%emt 00:00:03] [%clk 00:15:17]} 2.
e3 {[%emt 00:00:02] [%clk 00:15:26]} Nf6 {[%emt 00:00:07] [%clk 00:15:20]} 3. c4
{[%emt 00:00:02] [%clk 00:15:35]} e6 {[%emt 00:00:05] [%clk 00:15:24]} 4. Nc3
{[%emt 00:00:02] [%clk 00:15:43]} Nbd7 {[%emt 00:00:32] [%clk 00:15:01]} 5. b3
{[%emt 00:00:06] [%clk 00:15:47]} c6 {[%emt 00:00:50] [%clk 00:14:20]} 6. Qc2
{[%emt 00:00:03] [%clk 00:15:55]} Bd6 {[%emt 00:00:30] [%clk 00:14:00]} 7. Bb2
{[%emt 00:00:02] [%clk 00:16:04]} O-O {[%emt 00:00:52] [%clk 00:13:17]} 8. Be2
{[%clk 00:16:13]} a6 {[%emt 00:01:37] [%clk 00:11:50]} 9. d4 {[%emt 00:00:49]
[%clk 00:15:35]} dxc4 {[%emt 00:00:30] [%clk 00:11:30]} 10. bxc4 {[%emt
00:00:03] [%clk 00:15:42]} e5 {[%emt 00:00:13] [%clk 00:11:27]} 11. O-O {[%emt
00:00:02] [%clk 00:15:50]} Qe7 {[%emt 00:00:50] [%clk 00:10:47]} 12. c5 {[%emt
00:01:29] [%clk 00:14:32]} Bc7 {[%emt 00:00:10] [%clk 00:10:46]} 13. h3 {[%emt
00:00:02] [%clk 00:14:40]} Re8 {[%emt 00:01:11] [%clk 00:09:45]} 14. Bc4 {[%emt
00:00:17] [%clk 00:14:33]} h6 {[%emt 00:02:46] [%clk 00:07:09]} 15. Rae1 {[%emt
00:00:55] [%clk 00:13:48]} b5 {[%emt 00:01:51] [%clk 00:05:27]} 16. cxb6 {[%emt
00:00:02] [%clk 00:13:57]} Nxb6 {[%emt 00:00:02] [%clk 00:05:35]} 17. dxe5
{[%emt 00:00:39] [%clk 00:13:29]} Nxc4 {[%emt 00:01:01] [%clk 00:04:44]} 18.
exf6 {[%emt 00:00:02] [%clk 00:13:36]} gxf6 {[%emt 00:01:49] [%clk 00:03:05]}
19. Ba1 {[%emt 00:00:04] [%clk 00:13:42]} Ne5 {[%emt 00:00:07] [%clk 00:03:09]}
20. Nd4 {[%emt 00:00:34] [%clk 00:13:17]} a5 {[%emt 00:00:14] [%clk 00:03:06]}
21. f4 {[%emt 00:00:27] [%clk 00:13:00]} Ng6 {[%emt 00:00:12] [%clk 00:03:03]}
22. Nxc6 {[%emt 00:01:21] [%clk 00:11:49]} Qc5 {[%emt 00:00:12] [%clk 00:03:01]}
23. Nd4 {[%emt 00:00:03] [%clk 00:11:57]} Ba6 {[%emt 00:01:29] [%clk 00:01:42]}
24. Ne4 {[%emt 00:00:33] [%clk 00:11:34]} Qxc2 {[%emt 00:00:21] [%clk 00:01:31]}
25. Nxf6+ {[%emt 00:00:02] [%clk 00:11:41]} Kf8 {[%emt 00:00:01] [%clk
00:01:40]} 26. Nxc2 {[%emt 00:00:09] [%clk 00:11:43]} Rec8 {[%emt 00:00:33]
[%clk 00:01:17]} 27. Rf2 {[%emt 00:00:13] [%clk 00:11:39]} Bb6 {[%emt 00:00:29]
[%clk 00:00:58]} 28. Nd7+ {[%emt 00:00:02] [%clk 00:11:47]} 1-0

[Site "Europe Echecs"]

[Event "Championnat d'Europe Rapide"]
[Date "2024.12.07"]
[White "Sarana, Alexey"]
[Black "Nakonechnyi, Oleksii"]
[WhiteElo "2674"]
[BlackElo "2052"]
[Round "4.31"]
[Result "1-0"]
[TimeControl "900+10"]

1. d4 {[%emt 00:00:01] [%clk 00:15:19]} Nf6 {[%emt 00:00:02] [%clk 00:15:18]} 2.
c4 {[%emt 00:00:01] [%clk 00:15:28]} e6 {[%emt 00:00:03] [%clk 00:15:27]} 3. Nf3
{[%emt 00:00:07] [%clk 00:15:29]} Bb4+ {[%emt 00:00:05] [%clk 00:15:33]} 4. Bd2
{[%emt 00:00:02] [%clk 00:15:37]} Be7 {[%emt 00:00:03] [%clk 00:15:40]} 5. Qc2
{[%emt 00:01:44] [%clk 00:14:03]} d5 {[%emt 00:00:17] [%clk 00:15:32]} 6. cxd5
{[%emt 00:00:02] [%clk 00:14:11]} exd5 {[%emt 00:00:02] [%clk 00:15:41]} 7. Nc3
{[%emt 00:00:01] [%clk 00:14:20]} O-O {[%emt 00:00:18] [%clk 00:15:33]} 8. Bf4
{[%emt 00:00:06] [%clk 00:14:24]} c6 {[%emt 00:00:14] [%clk 00:15:29]} 9. e3
{[%emt 00:00:02] [%clk 00:14:32]} Nbd7 {[%emt 00:00:08] [%clk 00:15:31]} 10. Bd3
{[%emt 00:00:02] [%clk 00:14:40]} Re8 {[%emt 00:00:06] [%clk 00:15:35]} 11. O-O
{[%emt 00:00:03] [%clk 00:14:47]} Nf8 {[%emt 00:00:01] [%clk 00:15:44]} 12. h3
{[%emt 00:00:13] [%clk 00:14:44]} Ng6 {[%emt 00:00:12] [%clk 00:15:42]} 13. Bg5
{[%emt 00:00:17] [%clk 00:14:37]} Ne4 {[%emt 00:00:30] [%clk 00:15:23]} 14. Bxe7
{[%emt 00:01:04] [%clk 00:13:42]} Qxe7 {[%emt 00:00:11] [%clk 00:15:23]} 15.
Rab1 {[%emt 00:00:01] [%clk 00:13:51]} Bf5 {[%emt 00:02:15] [%clk 00:13:18]} 16.
b4 {[%emt 00:00:07] [%clk 00:13:54]} Nxc3 {[%emt 00:01:01] [%clk 00:12:27]} 17.
Qxc3 {[%emt 00:00:02] [%clk 00:14:03]} Be4 {[%clk 00:12:37]} 18. Nd2 {[%emt
00:00:36] [%clk 00:13:36]} Qg5 {[%emt 00:00:42] [%clk 00:12:05]} 19. Bxe4 {[%emt
00:00:34] [%clk 00:13:12]} dxe4 {[%emt 00:00:01] [%clk 00:12:14]} 20. Qc5 {[%emt
00:00:06] [%clk 00:13:15]} f5 {[%emt 00:00:17] [%clk 00:12:07]} 21. Kh2 {[%emt
00:00:05] [%clk 00:13:20]} Rad8 {[%emt 00:00:45] [%clk 00:11:32]} 22. g3 {[%emt
00:00:12] [%clk 00:13:18]} Rd5 {[%emt 00:00:18] [%clk 00:11:24]} 23. Qxa7 {[%emt
00:00:14] [%clk 00:13:14]} f4 {[%emt 00:00:18] [%clk 00:11:15]} 24. Qxb7 {[%emt
00:00:54] [%clk 00:12:31]} fxg3+ {[%emt 00:00:18] [%clk 00:11:06]} 25. fxg3
{[%emt 00:00:02] [%clk 00:12:39]} Qxe3 {[%emt 00:00:02] [%clk 00:11:15]} 26.
Qf7+ {[%emt 00:00:03] [%clk 00:12:45]} 1-0

[Site "Europe Echecs"]

[Event "Championnat d'Europe Rapide"]
[Date "2024.12.07"]
[White "Mamedov, Rauf"]
[Black "Kralevski, Aleksander"]
[WhiteElo "2656"]
[BlackElo "2028"]
[Round "4.32"]
[Result "1-0"]
[TimeControl "900+10"]

1. e4 {[%emt 00:00:24] [%clk 00:14:56]} e5 {[%emt 00:00:03] [%clk 00:15:17]} 2.
Nf3 {[%emt 00:00:02] [%clk 00:15:04]} Nf6 {[%emt 00:00:05] [%clk 00:15:22]} 3.
d4 {[%emt 00:00:05] [%clk 00:15:09]} Nxe4 {[%emt 00:00:07] [%clk 00:15:25]} 4.
Bd3 {[%emt 00:00:01] [%clk 00:15:17]} d5 {[%emt 00:00:02] [%clk 00:15:34]} 5.
Nxe5 {[%emt 00:00:01] [%clk 00:15:26]} Nd7 {[%emt 00:00:02] [%clk 00:15:42]} 6.
Nc3 {[%emt 00:00:02] [%clk 00:15:34]} Nxc3 {[%emt 00:03:31] [%clk 00:12:21]} 7.
bxc3 {[%emt 00:00:02] [%clk 00:15:43]} Nf6 {[%emt 00:00:03] [%clk 00:12:28]} 8.
O-O {[%emt 00:00:35] [%clk 00:15:17]} Be7 {[%emt 00:00:03] [%clk 00:12:36]} 9.
Rb1 {[%emt 00:00:09] [%clk 00:15:18]} O-O {[%emt 00:00:14] [%clk 00:12:31]} 10.
Re1 {[%emt 00:00:02] [%clk 00:15:27]} h6 {[%emt 00:00:28] [%clk 00:12:13]} 11.
Qf3 {[%emt 00:00:02] [%clk 00:15:35]} c6 {[%emt 00:00:16] [%clk 00:12:07]} 12.
h3 {[%emt 00:00:10] [%clk 00:15:34]} Re8 {[%emt 00:01:31] [%clk 00:10:47]} 13.
c4 {[%emt 00:00:02] [%clk 00:15:43]} Rb8 {[%emt 00:02:52] [%clk 00:08:05]} 14.
Nxc6 {[%emt 00:00:10] [%clk 00:15:42]} bxc6 {[%emt 00:00:30] [%clk 00:07:46]}
15. Rxb8 {[%clk 00:15:51]} Bd6 {[%clk 00:07:55]} 16. Rxe8+ {[%emt 00:00:02]
[%clk 00:15:59]} Qxe8 {[%emt 00:00:01] [%clk 00:08:04]} 17. Rxc8 {[%emt
00:02:08] [%clk 00:14:01]} Qxc8 {[%emt 00:00:07] [%clk 00:08:07]} 18. c5 {[%emt
00:00:05] [%clk 00:14:06]} Be7 {[%emt 00:00:41] [%clk 00:07:36]} 19. Qe2 {[%emt
00:00:03] [%clk 00:14:13]} Kf8 {[%emt 00:00:06] [%clk 00:07:41]} 20. Bf4 {[%emt
00:00:04] [%clk 00:14:19]} Qb7 {[%emt 00:00:14] [%clk 00:07:38]} 21. c3 {[%emt
00:00:03] [%clk 00:14:25]} Bd8 {[%emt 00:01:31] [%clk 00:06:17]} 22. Bd6+ {[%emt
00:00:49] [%clk 00:13:46]} Be7 {[%emt 00:00:12] [%clk 00:06:15]} 23. Bg3 {[%emt
00:00:08] [%clk 00:13:48]} g6 {[%emt 00:00:16] [%clk 00:06:09]} 24. Kh2 {[%emt
00:00:12] [%clk 00:13:46]} h5 {[%emt 00:00:05] [%clk 00:06:15]} 25. Bf4 {[%emt
00:00:07] [%clk 00:13:48]} Ng8 {[%emt 00:00:07] [%clk 00:06:18]} 26. Qc2 {[%emt
00:00:10] [%clk 00:13:48]} Kg7 {[%emt 00:00:05] [%clk 00:06:24]} 27. Qb3 {[%emt
00:00:03] [%clk 00:13:55]} Qd7 {[%emt 00:00:19] [%clk 00:06:15]} 28. Qb8 {[%emt
00:00:02] [%clk 00:14:03]} Nf6 {[%emt 00:00:26] [%clk 00:06:00]} 29. Be5 {[%emt
00:00:02] [%clk 00:14:11]} Kh7 {[%emt 00:00:15] [%clk 00:05:55]} 30. a4 {[%emt
00:00:01] [%clk 00:14:20]} Ne8 {[%emt 00:00:08] [%clk 00:05:57]} 31. a5 {[%emt
00:00:03] [%clk 00:14:27]} Bd8 {[%emt 00:00:23] [%clk 00:05:44]} 32. a6 {[%emt
00:00:29] [%clk 00:14:08]} f6 {[%emt 00:00:14] [%clk 00:05:40]} 33. Qb7 {[%emt
00:00:14] [%clk 00:14:04]} Bc7 {[%emt 00:00:35] [%clk 00:05:15]} 34. Bxc7 {[%emt
00:00:39] [%clk 00:13:35]} Qxc7+ {[%emt 00:00:05] [%clk 00:05:21]} 35. g3 {[%emt
00:00:12] [%clk 00:13:33]} Kh6 {[%emt 00:00:15] [%clk 00:05:16]} 36. Kg2 {[%emt
00:00:24] [%clk 00:13:18]} h4 {[%emt 00:00:15] [%clk 00:05:12]} 37. Bc2 {[%emt
00:00:04] [%clk 00:13:24]} hxg3 {[%emt 00:00:11] [%clk 00:05:11]} 38. fxg3
{[%emt 00:00:01] [%clk 00:13:32]} f5 {[%emt 00:00:24] [%clk 00:04:58]} 39. Qxc7
{[%emt 00:00:49] [%clk 00:12:53]} Nxc7 {[%emt 00:00:01] [%clk 00:05:06]} 40. Ba4
{[%emt 00:00:01] [%clk 00:13:03]} Nxa6 {[%emt 00:00:06] [%clk 00:05:10]} 41.
Bxc6 {[%clk 00:13:12]} Nc7 {[%emt 00:00:02] [%clk 00:05:18]} 42. Kf3 {[%emt
00:00:03] [%clk 00:13:19]} g5 {[%emt 00:00:04] [%clk 00:05:24]} 43. h4 {[%emt
00:00:09] [%clk 00:13:19]} a5 {[%emt 00:00:08] [%clk 00:05:27]} 44. Bd7 {[%emt
00:00:12] [%clk 00:13:17]} Kg6 {[%emt 00:00:16] [%clk 00:05:21]} 45. Ba4 {[%emt
00:00:56] [%clk 00:12:31]} Kf6 {[%emt 00:00:48] [%clk 00:04:43]} 46. Bc6 {[%emt
00:00:28] [%clk 00:12:13]} Kg6 {[%emt 00:00:09] [%clk 00:04:45]} 47. Bd7 {[%emt
00:00:02] [%clk 00:12:21]} Kf6 {[%emt 00:00:20] [%clk 00:04:35]} 48. h5 {[%emt
00:01:20] [%clk 00:11:12]} g4+ {[%emt 00:01:50] [%clk 00:02:55]} 49. Kf4 {[%emt
00:00:18] [%clk 00:11:03]} a4 {[%emt 00:00:10] [%clk 00:02:55]} 50. Bxa4 {[%emt
00:00:03] [%clk 00:11:10]} Ne6+ {[%emt 00:00:01] [%clk 00:03:04]} 51. Ke3 {[%emt
00:00:01] [%clk 00:11:19]} Kg5 {[%emt 00:00:04] [%clk 00:03:10]} 52. Bd7 {[%emt
00:00:08] [%clk 00:11:21]} Nc7 {[%emt 00:00:31] [%clk 00:02:50]} 53. h6 {[%emt
00:00:01] [%clk 00:11:29]} f4+ {[%emt 00:00:36] [%clk 00:02:24]} 54. gxf4+
{[%emt 00:00:01] [%clk 00:11:38]} Kxh6 {[%emt 00:00:01] [%clk 00:02:33]} 55.
Bxg4 {[%emt 00:00:01] [%clk 00:11:46]} 1-0

[Site "Europe Echecs"]

[Event "Championnat d'Europe Rapide"]
[Date "2024.12.07"]
[White "Zygouris, Hristos"]
[Black "Kuzubov, Yuriy"]
[WhiteElo "2163"]
[BlackElo "2595"]
[Round "4.33"]
[Result "0-1"]
[TimeControl "900+10"]

1. Nf3 {[%emt 00:02:05] [%clk 00:13:15]} d5 {[%emt 00:00:04] [%clk 00:15:16]} 2.
g3 {[%emt 00:00:02] [%clk 00:13:23]} c5 {[%emt 00:01:32] [%clk 00:13:53]} 3. Bg2
{[%emt 00:00:02] [%clk 00:13:31]} g6 {[%emt 00:00:04] [%clk 00:13:59]} 4. c4
{[%emt 00:00:02] [%clk 00:13:39]} d4 {[%emt 00:00:18] [%clk 00:13:51]} 5. e3
{[%emt 00:00:28] [%clk 00:13:21]} dxe3 {[%emt 00:00:33] [%clk 00:13:28]} 6. fxe3
{[%emt 00:00:18] [%clk 00:13:14]} Bg7 {[%emt 00:00:01] [%clk 00:13:37]} 7. d4
{[%emt 00:00:27] [%clk 00:12:57]} Nh6 {[%emt 00:00:22] [%clk 00:13:24]} 8. Qa4+
{[%emt 00:02:57] [%clk 00:10:10]} Nd7 {[%emt 00:01:05] [%clk 00:12:28]} 9. O-O
{[%emt 00:04:35] [%clk 00:05:45]} O-O {[%emt 00:00:03] [%clk 00:12:35]} 10. d5
{[%emt 00:02:40] [%clk 00:03:16]} Nf5 {[%emt 00:02:29] [%clk 00:10:16]} 11. Qc2
{[%emt 00:01:29] [%clk 00:01:57]} Nd6 {[%emt 00:01:07] [%clk 00:09:18]} 12. a4
{[%emt 00:00:54] [%clk 00:01:14]} Nf6 {[%emt 00:00:54] [%clk 00:08:33]} 13. Nfd2
{[%emt 00:00:34] [%clk 00:00:51]} Ng4 {[%emt 00:00:38] [%clk 00:08:05]} 14. Ra3
{[%emt 00:00:07] [%clk 00:00:54]} f5 {[%emt 00:02:15] [%clk 00:05:59]} 15. h3
{[%emt 00:00:14] [%clk 00:00:50]} Nf6 {[%emt 00:00:05] [%clk 00:06:05]} 16. Nc3
{[%emt 00:00:08] [%clk 00:00:52]} e5 {[%emt 00:01:05] [%clk 00:05:10]} 17. Nb5
{[%emt 00:00:43] [%clk 00:00:19]} e4 {[%emt 00:00:27] [%clk 00:04:52]} 18. Rf2
{[%emt 00:00:16] [%clk 00:00:13]} h5 {[%emt 00:00:25] [%clk 00:04:38]} 19. Nf1
{[%emt 00:00:08] [%clk 00:00:15]} h4 {[%emt 00:00:05] [%clk 00:04:43]} 20. gxh4
{[%emt 00:00:02] [%clk 00:00:24]} Nh5 {[%emt 00:00:07] [%clk 00:04:46]} 21. Bd2
{[%emt 00:00:06] [%clk 00:00:28]} Nf7 {[%emt 00:00:22] [%clk 00:04:33]} 22. Bc3
{[%emt 00:00:08] [%clk 00:00:30]} Ne5 {[%emt 00:00:11] [%clk 00:04:32]} 23. Bxe5
{[%emt 00:00:20] [%clk 00:00:20]} Bxe5 {[%emt 00:00:02] [%clk 00:04:40]} 24. Nc3
{[%emt 00:00:09] [%clk 00:00:22]} Bd7 {[%emt 00:00:20] [%clk 00:04:29]} 25. Ne2
{[%emt 00:00:03] [%clk 00:00:30]} Qxh4 {[%emt 00:00:05] [%clk 00:04:34]} 26. a5
{[%emt 00:00:06] [%clk 00:00:34]} Rae8 {[%emt 00:00:11] [%clk 00:04:32]} 27. Qd2
{[%emt 00:00:09] [%clk 00:00:36]} Bd6 {[%emt 00:00:20] [%clk 00:04:22]} 28. Rb3
{[%emt 00:00:07] [%clk 00:00:39]} Bc8 {[%emt 00:00:14] [%clk 00:04:18]} 29. Nf4
{[%emt 00:00:08] [%clk 00:00:41]} Nxf4 {[%emt 00:00:26] [%clk 00:04:03]} 30.
exf4 {[%emt 00:00:01] [%clk 00:00:49]} g5 {[%emt 00:00:04] [%clk 00:04:08]} 31.
Rg3 {[%emt 00:00:03] [%clk 00:00:56]} e3 {[%emt 00:01:35] [%clk 00:02:43]} 32.
Rxe3 {[%emt 00:00:07] [%clk 00:00:59]} Bxf4 {[%emt 00:00:06] [%clk 00:02:47]}
33. Rxf4 {[%emt 00:00:41] [%clk 00:00:28]} Qxf4 {[%emt 00:00:05] [%clk
00:02:51]} 34. Rxe8 {[%emt 00:00:04] [%clk 00:00:34]} Rxe8 {[%emt 00:00:01]
[%clk 00:03:00]} 35. Qxf4 {[%emt 00:00:10] [%clk 00:00:35]} gxf4 {[%emt
00:00:02] [%clk 00:03:08]} 36. Kf2 {[%emt 00:00:01] [%clk 00:00:44]} Kf7 {[%emt
00:00:23] [%clk 00:02:56]} 37. Kf3 {[%emt 00:00:07] [%clk 00:00:47]} Re4 {[%emt
00:00:19] [%clk 00:02:46]} 38. b3 {[%emt 00:00:08] [%clk 00:00:49]} Kf6 {[%emt
00:00:09] [%clk 00:02:46]} 39. Kf2 {[%emt 00:00:02] [%clk 00:00:57]} Re8 {[%emt
00:00:11] [%clk 00:02:46]} 40. Bf3 {[%emt 00:00:37] [%clk 00:00:30]} Bd7 {[%emt
00:00:08] [%clk 00:02:47]} 41. h4 {[%emt 00:00:06] [%clk 00:00:34]} Rh8 {[%emt
00:00:06] [%clk 00:02:51]} 42. h5 {[%emt 00:00:02] [%clk 00:00:42]} Be8 {[%emt
00:00:04] [%clk 00:02:57]} 43. d6 {[%emt 00:00:19] [%clk 00:00:34]} b6 {[%emt
00:00:08] [%clk 00:02:59]} 44. axb6 {[%emt 00:00:07] [%clk 00:00:37]} axb6
{[%clk 00:03:08]} 45. Nd2 {[%emt 00:00:13] [%clk 00:00:33]} Ke6 {[%emt 00:00:02]
[%clk 00:03:16]} 46. Nb1 {[%emt 00:00:03] [%clk 00:00:39]} Bxh5 {[%emt 00:00:09]
[%clk 00:03:17]} 47. Bd5+ {[%emt 00:00:14] [%clk 00:00:36]} Kxd6 {[%emt
00:00:02] [%clk 00:03:24]} 48. Nc3 {[%emt 00:00:02] [%clk 00:00:44]} Bg4 {[%emt
00:00:06] [%clk 00:03:28]} 49. Bg2 {[%emt 00:00:08] [%clk 00:00:46]} Ke5 {[%emt
00:00:11] [%clk 00:03:27]} 50. Nd5 {[%emt 00:00:04] [%clk 00:00:52]} f3 {[%emt
00:00:08] [%clk 00:03:29]} 51. Bf1 {[%emt 00:00:11] [%clk 00:00:51]} Rh6 {[%emt
00:00:23] [%clk 00:03:15]} 52. Ke3 {[%emt 00:00:19] [%clk 00:00:42]} Rh1 {[%emt
00:00:24] [%clk 00:03:01]} 53. Bd3 {[%emt 00:00:02] [%clk 00:00:51]} b5 {[%emt
00:00:15] [%clk 00:02:56]} 54. Nf4 {[%emt 00:00:38] [%clk 00:00:23]} Re1+ {[%emt
00:00:06] [%clk 00:03:00]} 55. Kf2 {[%emt 00:00:04] [%clk 00:00:29]} Kxf4 {[%emt
00:00:06] [%clk 00:03:04]} 56. Kxe1 {[%emt 00:00:05] [%clk 00:00:34]} Ke3 {[%emt
00:00:08] [%clk 00:03:06]} 57. Bf1 {[%emt 00:00:03] [%clk 00:00:42]} f2# {[%emt
00:00:02] [%clk 00:03:14]} 0-1

[Site "Europe Echecs"]

[Event "Championnat d'Europe Rapide"]
[Date "2024.12.07"]
[White "Trapp, Maximilian"]
[Black "Quparadze, Giga"]
[WhiteElo "2050"]
[BlackElo "2537"]
[Round "4.34"]
[Result "0-1"]
[TimeControl "900+10"]

1. d4 {[%clk 00:15:19]} Nf6 {[%emt 00:00:04] [%clk 00:15:19]} 2. Nf3 {[%clk
00:15:26]} e6 {[%emt 00:00:02] [%clk 00:15:27]} 3. Bf4 {[%emt 00:00:07] [%clk
00:15:29]} c5 {[%emt 00:00:12] [%clk 00:15:26]} 4. c3 {[%emt 00:00:40] [%clk
00:14:59]} Nc6 {[%emt 00:00:08] [%clk 00:15:28]} 5. e3 {[%emt 00:00:05] [%clk
00:15:04]} d5 {[%emt 00:00:02] [%clk 00:15:36]} 6. Nbd2 {[%emt 00:00:10] [%clk
00:15:04]} cxd4 {[%emt 00:00:02] [%clk 00:15:44]} 7. exd4 {[%emt 00:00:04] [%clk
00:15:10]} Nh5 {[%emt 00:00:01] [%clk 00:15:52]} 8. Bg3 {[%emt 00:00:14] [%clk
00:15:07]} g6 {[%emt 00:00:03] [%clk 00:15:58]} 9. Be2 {[%emt 00:00:23] [%clk
00:14:54]} Bg7 {[%emt 00:00:02] [%clk 00:16:06]} 10. O-O {[%emt 00:01:35] [%clk
00:13:29]} O-O {[%emt 00:00:02] [%clk 00:16:13]} 11. Re1 {[%emt 00:00:14] [%clk
00:13:25]} a6 {[%emt 00:00:16] [%clk 00:16:08]} 12. Nb3 {[%emt 00:00:55] [%clk
00:12:40]} b6 {[%emt 00:00:19] [%clk 00:15:59]} 13. Nc1 {[%emt 00:00:08] [%clk
00:12:42]} Nxg3 {[%emt 00:00:13] [%clk 00:15:56]} 14. hxg3 {[%emt 00:00:02]
[%clk 00:12:50]} f6 {[%emt 00:00:01] [%clk 00:16:05]} 15. c4 {[%emt 00:01:00]
[%clk 00:12:00]} Bb7 {[%emt 00:00:15] [%clk 00:15:59]} 16. cxd5 {[%emt 00:00:43]
[%clk 00:11:28]} Qxd5 {[%emt 00:00:08] [%clk 00:16:01]} 17. Qb3 {[%emt 00:00:07]
[%clk 00:11:31]} Nxd4 {[%emt 00:00:32] [%clk 00:15:38]} 18. Qxb6 {[%emt
00:01:28] [%clk 00:10:13]} e5 {[%emt 00:00:04] [%clk 00:15:44]} 19. Nb3 {[%emt
00:00:37] [%clk 00:09:47]} Nxe2+ {[%emt 00:00:22] [%clk 00:15:32]} 20. Rxe2
{[%emt 00:00:05] [%clk 00:09:52]} Bh6 {[%emt 00:00:42] [%clk 00:14:59]} 21. Ree1
{[%emt 00:02:29] [%clk 00:07:33]} Qb5 {[%emt 00:00:44] [%clk 00:14:25]} 22. Qe6+
{[%emt 00:00:10] [%clk 00:07:32]} Rf7 {[%emt 00:00:23] [%clk 00:14:12]} 23. Rad1
{[%emt 00:00:08] [%clk 00:07:34]} Re8 {[%emt 00:00:23] [%clk 00:13:58]} 24. Qh3
{[%emt 00:01:03] [%clk 00:06:41]} Kg7 {[%emt 00:00:02] [%clk 00:14:06]} 25. Qh4
{[%emt 00:02:12] [%clk 00:04:41]} a5 {[%emt 00:00:07] [%clk 00:14:09]} 26. Nbd2
{[%emt 00:01:17] [%clk 00:03:34]} Qxb2 {[%emt 00:00:39] [%clk 00:13:40]} 27. Nc4
{[%emt 00:00:05] [%clk 00:03:39]} Qxa2 {[%emt 00:00:19] [%clk 00:13:31]} 28. Nd6
{[%emt 00:00:01] [%clk 00:03:48]} Ree7 {[%emt 00:00:10] [%clk 00:13:31]} 29.
Nxf7 {[%emt 00:00:04] [%clk 00:03:54]} Rxf7 {[%emt 00:00:02] [%clk 00:13:39]}
30. Ra1 {[%emt 00:00:01] [%clk 00:04:03]} Qb3 {[%emt 00:00:35] [%clk 00:13:09]}
31. Qa4 {[%emt 00:00:07] [%clk 00:04:11]} Qxa4 {[%emt 00:00:31] [%clk 00:12:48]}
32. Rxa4 {[%emt 00:00:02] [%clk 00:04:20]} Bc6 {[%clk 00:12:57]} 33. Rc4 {[%emt
00:00:26] [%clk 00:04:04]} Be8 {[%emt 00:00:23] [%clk 00:12:44]} 34. Rc8 {[%emt
00:00:11] [%clk 00:04:04]} Bd7 {[%emt 00:00:28] [%clk 00:12:25]} 35. Ra8 {[%emt
00:00:02] [%clk 00:04:12]} a4 {[%emt 00:00:02] [%clk 00:12:34]} 36. Rb1 {[%emt
00:00:07] [%clk 00:04:13]} Bc6 {[%emt 00:00:55] [%clk 00:11:49]} 37. Ra6 {[%emt
00:00:02] [%clk 00:04:21]} Be4 {[%emt 00:00:46] [%clk 00:11:13]} 38. Rb2 {[%emt
00:00:43] [%clk 00:03:49]} Bc1 {[%emt 00:01:05] [%clk 00:10:18]} 39. Rb4 {[%emt
00:00:01] [%clk 00:03:58]} Bxf3 {[%emt 00:00:35] [%clk 00:09:52]} 40. gxf3
{[%emt 00:00:02] [%clk 00:04:07]} a3 {[%clk 00:10:01]} 41. Rba4 {[%emt 00:00:54]
[%clk 00:03:23]} h5 {[%emt 00:00:10] [%clk 00:10:00]} 42. Kf1 {[%emt 00:00:07]
[%clk 00:03:26]} Bb2 {[%emt 00:00:03] [%clk 00:10:06]} 43. Ra7 {[%emt 00:00:03]
[%clk 00:03:34]} g5 {[%emt 00:00:04] [%clk 00:10:12]} 44. Kg2 {[%emt 00:01:02]
[%clk 00:02:42]} Kg6 {[%emt 00:00:10] [%clk 00:10:12]} 45. Rxf7 {[%emt 00:00:04]
[%clk 00:02:48]} Kxf7 {[%emt 00:00:01] [%clk 00:10:20]} 46. f4 {[%emt 00:00:01]
[%clk 00:02:57]} exf4 {[%emt 00:01:39] [%clk 00:08:52]} 47. gxf4 {[%emt
00:00:03] [%clk 00:03:04]} g4 {[%clk 00:09:01]} 48. f5 {[%emt 00:00:09] [%clk
00:03:05]} Ke7 {[%emt 00:00:25] [%clk 00:08:46]} 49. Ra6 {[%emt 00:01:02] [%clk
00:02:13]} Kd7 {[%emt 00:00:02] [%clk 00:08:54]} 50. Kg3 {[%emt 00:00:01] [%clk
00:02:22]} Kc7 {[%clk 00:09:03]} 51. Kh4 {[%emt 00:00:26] [%clk 00:02:06]} Kb7
{[%clk 00:09:12]} 52. Ra4 {[%emt 00:00:13] [%clk 00:02:03]} Kb6 {[%clk
00:09:21]} 53. Kxh5 {[%emt 00:00:24] [%clk 00:01:49]} Kb5 {[%clk 00:09:31]} 54.
Ra8 {[%emt 00:00:03] [%clk 00:01:56]} Kb4 {[%emt 00:00:01] [%clk 00:09:39]} 55.
Kg6 {[%emt 00:00:22] [%clk 00:01:44]} Bc3 {[%emt 00:00:06] [%clk 00:09:43]} 56.
Rb8+ {[%emt 00:01:08] [%clk 00:00:47]} Ka4 {[%emt 00:00:12] [%clk 00:09:41]} 57.
Rc8 {[%emt 00:00:38] [%clk 00:00:18]} Kb3 {[%emt 00:00:21] [%clk 00:09:31]} 58.
Rb8+ {[%emt 00:00:10] [%clk 00:00:19]} Ka2 {[%emt 00:01:03] [%clk 00:08:37]} 59.
Rb7 {[%emt 00:00:13] [%clk 00:00:15]} Bd4 {[%emt 00:00:19] [%clk 00:08:27]} 60.
Rb4 {[%emt 00:00:05] [%clk 00:00:21]} Bb2 {[%emt 00:00:02] [%clk 00:08:35]} 61.
Rxg4 {[%emt 00:00:19] [%clk 00:00:12]} Kb1 {[%emt 00:00:02] [%clk 00:08:43]} 62.
Ra4 {[%emt 00:00:10] [%clk 00:00:13]} a2 {[%emt 00:00:01] [%clk 00:08:51]} 0-1

[Site "Europe Echecs"]